[Event "13th KIIT Festival-A 2022"]
[Site "Bhubaneswar"]
[Date "2022.05.26"]
[Round "6.8"]
[White "Rahman, Ziaur"]
[Black "Praloy Sahoo"]
[Result "1-0"]
[ECO "A09"]
[WhiteElo "2431"]
[BlackElo "2065"]
[Annotator "TA"]
[PlyCount "143"]
[EventDate "2022.05.15"]
[EventType "swiss"]
[EventCountry "IND"]
[SourceTitle "playchess.com"]
[Source "ChessBase"]
[SourceQuality "1"]
[TimeControl "5400+30"]

{[%evp 12,143,24,0,40,14,37,-5,20,14,18,18,5,16,12,19,10,7,14,0,7,23,33,14,28,25,46,35,38,26,23,21,24,17,17,17,12,0,49,0,0,0,0,0,3,0,0,-26,-6,-12,-19,-16,-15,-8,0,0,0,11,22,27,31,38,30,30,52,30,50,38,112,117,113,92,102,105,116,109,126,122,127,110,131,138,158,128,147,104,228,148,148,148,147,150,180,182,217,217,207,151,151,151,172,172,172,151,151,151,215,187,244,212,237,229,197,117,117,117,136,117,514,196,196,196,5506,5539,4921,3660,29974,29975,29975,29976,29976,29977,29976,12332]} 1. Nf3 {[%emt 0:00:28]} d5 {[%emt 0:01:16]} 2. c4 {[%emt 0:00:55]} d4 {[%emt 0:00:37]} 3. g3 {[%emt 0:00:58]} Nc6 {[%emt 0:00:07]} 4. Bg2 {[%emt 0:00:19]} e5 {[%emt 0:00:04]} 5. d3 {[%emt 0:00:22]} Nf6 {[%emt 0:02:07]} 6. O-O {[%emt 0:00:12]} Nd7 {[%emt 0:00:02]} 7. Na3 {[%emt 0:03:46]} Be7 {[%emt 0:01:04] A09: Réti Opening: 1 Nf3 d5 2 c4.} (7... Bxa3 $5 8. bxa3 O-O $11) 8. Nc2 {[%emt 0:01:05]} a5 {[%emt 0:01:07]} 9. a3 {[%emt 0:07:05] [#]} Nc5 $146 {[%emt 0:21:31] The position is equal.} ({Predecessor:} 9... O-O 10. Bd2 Bf6 11. b4 e4 12. dxe4 Nde5 13. Nxe5 Nxe5 14. f4 Nxc4 15. e5 Be7 16. bxa5 {½-½ (36) Agopov,M (2452)-Ebeling,D (2279) Helsinki 2012}) 10. b4 {[%emt 0:02:41]} axb4 {[%emt 0:00:10]} 11. axb4 {[%emt 0:00:05]} Rxa1 {[%emt 0:00:04]} 12. Nxa1 {[%emt 0:00:04]} Nxb4 {[%emt 0:00:03]} 13. Nxe5 {[%emt 0:00:42]} O-O {[%emt 0:08:37]} 14. Bd2 {[%emt 0:03:26]} Nca6 {[%emt 0:02:04]} 15. Nc2 {[%emt 0:01:08]} Re8 {[%emt 0:04:51]} 16. Nf3 {[%emt 0:02:31]} Nc6 {[%emt 0:06:24]} 17. Re1 {[%emt 0:07:59]} Bf6 {[%emt 0:05:24]} 18. Qb1 {[%emt 0:01:29]} Nc5 {[%emt 0:10:33]} 19. Qb5 {[%emt 0:02:39]} Ne6 {[%emt 0:12:26]} 20. Bc1 {[%emt 0:05:30]} Nb8 {[%emt 0:01:52]} 21. Qa5 {[%emt 0:10:45]} b6 {[%emt 0:06:29]} 22. Qa8 {[%emt 0:05:19]} Na6 {[%emt 0:00:03]} 23. Ba3 {[%emt 0:04:43]} c5 {[%emt 0:00:24][%cal Ob6b5]} 24. Nd2 {[%emt 0:02:21]} Re7 {[%emt 0:02:23]} (24... Bg5 $11 25. Ne4 Be7) 25. Rb1 {[%emt 0:03:10]} (25. Ne4 $14 {should be considered.}) 25... Bg5 $11 {[%emt 0:04:54]} 26. Bc1 {[%emt 0:10:02]} Nec7 {[%emt 0:01:29][%csl LRa8,LRe2]} 27. Qf3 {[%emt 0:00:40]} Ne8 {[%emt 0:01:51]} 28. Bf1 {[%emt 0:03:43]} Bb7 {[%emt 0:00:13]} 29. Qf5 {[%emt 0:01:56]} (29. Qg4 $5 {[%cal Rg4g5]} Bh6 30. Qh4 $11) 29... Bh6 {[%emt 0:00:16]} 30. Nb3 {[%emt 0:02:55]} g6 {[%emt 0:00:01]} 31. Qg4 {[%emt 0:00:42]} Bg7 {[%emt 0:00:04]} 32. Bg5 {[%emt 0:01:35]} f6 {[%emt 0:00:02]} 33. Bd2 {[%emt 0:00:12]} Qd6 {[%emt 0:00:21]} 34. h4 {[%emt 0:01:54]} Qc6 {[%emt 0:00:15][%csl Gb7][%cal Rc6h1]} 35. Qh3 {[%emt 0:00:02] Against Qh1+} Qa4 {[%emt 0:01:06] Strongly threatening ...Qa2.} 36. Nba1 {[%emt 0:00:33]} Qc6 {[%emt 0:08:16]} 37. Ne1 {[%emt 0:00:24]} Qc7 {[%emt 0:00:00]} 38. Bf4 {[%emt 0:01:00]} Qd8 {[%emt 0:00:00]} 39. Nac2 {[%emt 0:00:20]} Nec7 {[%emt 0:00:00]} ({Black should play} 39... Nd6 $14) 40. Rxb6 $16 {[%emt 0:01:14]} Bc8 {[%emt 0:00:00]} 41. Rd6 {[%emt 0:01:55]} Qe8 {[%emt 0:00:00]} 42. Qh1 {[%emt 0:00:11]} Ne6 {[%emt 0:00:00]} 43. Bd2 {[%emt 0:00:52]} Bf8 {[%emt 0:00:00]} 44. Qc6 {[%emt 0:01:05] White is more active.} Kf7 {[%emt 0:03:00]} 45. Qxe8+ {[%emt 0:00:28]} Rxe8 {[%emt 0:00:00]} 46. Rb6 {[%emt 0:00:09]} Nec7 {[%emt 0:00:58]} 47. Na3 {[%emt 0:00:28]} Bg4 {[%emt 0:00:31]} 48. Nf3 {[%emt 0:00:58]} Nb4 {[%emt 0:00:17]} (48... Rb8 $16 49. Rxb8 Nxb8) 49. Bxb4 {[%emt 0:01:50]} cxb4 {[%emt 0:00:01]} 50. Nc2 {[%emt 0:00:09][%cal Ba3c2,Bc2b4,Bb4c6][%mdl 32]} Bxf3 {[%emt 0:01:35]} 51. exf3 {[%emt 0:00:07]} Bc5 {[%emt 0:00:26]} 52. Rb7 {[%emt 0:00:13]} Re7 {[%emt 0:00:11][%cal Oc7d5]} 53. Nxb4 {[%emt 0:00:45] Black must now prevent Nc6.} Ne6 {[%emt 0:00:28]} 54. Rxe7+ {[%emt 0:01:02]} Bxe7 $18 {[%emt 0:00:07][%mdl 4096] Endgame KBN-KBN} 55. Nc6 {[%emt 0:00:36]} Bd6 {[%emt 0:00:42]} 56. f4 {[%emt 0:00:29]} f5 {[%emt 0:00:02]} 57. Be2 {[%emt 0:00:43]} Kf6 {[%emt 0:00:33]} 58. Kf1 {[%emt 0:00:29]} h6 {[%emt 0:00:29]} (58... Ba3 $16 59. Bf3 Bb2) 59. Ke1 {[%emt 0:00:52]} Bc7 {[%emt 0:00:56]} (59... Ba3 {might work better.} 60. Kd1 Bb2) 60. Kd2 {[%emt 0:00:18]} Nd8 {[%emt 0:00:09]} 61. Nxd8 {[%emt 0:02:17]} ({Don't play} 61. Nxd4 $6 Ba5+ 62. Kc2 Bb6 $16) 61... Bxd8 {[%emt 0:00:01] KB-KB} 62. c5 {[%emt 0:01:23]} (62. h5 $1 $18 {[%cal Rh5g6]}) 62... Ba5+ {[%emt 0:00:33]} 63. Kd1 $1 {[%emt 0:00:02]} Ke6 {[%emt 0:00:07]} 64. Bf3 {[%emt 0:00:10]} Bb4 $2 {[%emt 0:00:01][%mdl 8192] [#]} (64... h5 $16) 65. c6 $1 {[%emt 0:00:10]} Ba5 {[%emt 0:00:32] [#]} 66. h5 $1 {[%emt 0:00:36][%cal Bh4h5,Bh5h6][%mdl 32]} g5 $2 {[%emt 0:01:08]} (66... gxh5 67. Bxh5 Bd8) 67. fxg5 {[%emt 0:00:16]} hxg5 {[%emt 0:00:01]} 68. g4 {[%emt 0:00:35]} f4 {[%emt 0:02:32]} 69. Be4 {[%emt 0:00:13] White mates.} Bd8 {[%emt 0:01:10]} 70. Kc2 {[%emt 0:00:19]} Kd6 {[%emt 0:00:00]} 71. h6 {[%emt 0:00:24]} Bf6 {[%emt 0:00:00]} 72. Kb3 {[%emt 0:00:09] Weighted Error Value: White=0.11 (very precise) /Black=0.15 (very precise)} (72. h7 $142 Be5 73. Kb3 Bf6 74. Kc4 Bh8 75. Kb5 Kc7 76. Kc5 Bf6 77. Kd5) 1-0

[Event "13th KIIT Festival-A 2022"]
[Site "Bhubaneswar"]
[Date "2022.05.26"]
[Round "6.9"]
[White "Azaladze, Shota"]
[Black "Shiva Pavan Teja Sharma U"]
[Result "1-0"]
[ECO "A05"]
[WhiteElo "2420"]
[BlackElo "2064"]
[Annotator "TA"]
[PlyCount "91"]
[EventDate "2022.05.15"]
[EventType "swiss"]
[EventCountry "IND"]
[SourceTitle "playchess.com"]
[Source "ChessBase"]
[SourceQuality "1"]
[TimeControl "5400+30"]

{[%evp 11,91,9,13,-4,22,10,13,13,12,-6,7,1,18,20,16,6,18,0,14,0,0,0,0,0,0,0,0,0,0,0,19,15,49,49,72,67,70,65,68,70,90,69,71,0,0,0,0,0,28,30,30,30,33,28,26,48,24,28,118,125,228,225,233,228,231,226,218,212,322,230,628,628,621,599,750,372,289,0,735,692,639,583]} 1. Nf3 {[%emt 1:31:00]} Nf6 {[%emt 0:05:16]} 2. g3 {[%emt 0:00:00]} b6 {[%emt 0:00:11]} 3. Bg2 {[%emt 0:00:00]} Bb7 {[%emt 0:00:07]} 4. O-O {[%emt 0:00:00]} c5 {[%emt 0:03:37]} 5. d3 {[%emt 0:00:00]} g6 {[%emt 0:05:03]} 6. e4 {[%emt 0:00:00]} d6 {[%emt 0:00:53] 6...Bg7 is the modern continuation.} 7. Ne1 {[%emt 0:00:00] A05: Réti Opening: 1 Nf3 Nf6.} Qc8 {[%emt 0:04:53] [#]} 8. c4 $146 {[%emt 0:00:00]} ({Predecessor:} 8. f4 Nc6 9. Nd2 Bg7 10. Nc4 b5 11. Ne3 O-O 12. a4 a6 13. c4 bxa4 14. Rxa4 Nd7 {1-0 (41) Eliskases,E-Maderna,C Mar del Plata 1949}) 8... Bg7 {[%emt 0:01:37]} 9. Nc3 {[%emt 0:00:00] The position is equal.} Nc6 {[%emt 0:08:01]} 10. h3 {[%emt 0:00:00]} O-O {[%emt 0:08:26]} 11. Nc2 {[%emt 0:00:00]} Nd4 {[%emt 0:03:14]} 12. Nxd4 {[%emt 0:00:00]} cxd4 {[%emt 0:03:05]} 13. Nd5 {[%emt 0:00:00]} Nxd5 {[%emt 0:02:50]} 14. exd5 {[%emt 0:00:00]} e6 {[%emt 0:01:10]} 15. dxe6 {[%emt 0:00:00]} fxe6 {[%emt 0:01:20]} 16. Qe2 {[%emt 0:00:00]} Bxg2 {[%emt 0:01:22]} 17. Kxg2 {[%emt 0:00:00]} Qc6+ {[%emt 0:00:06]} 18. f3 {[%emt 0:00:00]} d5 {[%emt 0:01:05]} 19. b3 {[%emt 0:00:00]} Rfe8 {[%emt 0:05:02]} 20. Bd2 {[%emt 0:00:00]} dxc4 {[%emt 0:02:25]} 21. bxc4 {[%emt 0:00:00]} e5 {[%emt 0:02:03]} 22. a4 {[%emt 0:00:00]} h5 {[%emt 0:03:03]} 23. Rfe1 {[%emt 0:00:00]} Re6 {[%emt 0:05:22]} 24. Qe4 {[%emt 0:00:00]} (24. Bg5 {with more complications.} Rf8 25. Qe4 Rf5 26. Bd2) 24... Qxe4 {[%emt 0:03:50]} 25. Rxe4 {[%emt 0:00:00]} Rc6 {[%emt 0:01:48]} 26. Rae1 {[%emt 0:00:00]} a6 {[%emt 0:01:25][%cal Ob6b5,Ba7a6,Ba6b5][%mdl 32]} 27. Bb4 {[%emt 0:00:00]} (27. Ra1 $16) 27... b5 $1 $11 {[%emt 0:02:46]} 28. cxb5 {[%emt 0:00:00]} axb5 {[%emt 0:00:09]} 29. a5 {[%emt 0:00:00]} Rc2+ {[%emt 0:02:37]} 30. R4e2 {[%emt 0:00:00]} Rxe2+ {[%emt 0:01:25]} 31. Rxe2 {[%emt 0:00:00][%mdl 4096] Endgame KRB-KRB} Bf8 {[%emt 0:00:23]} 32. Be1 {[%emt 0:00:00]} Bd6 {[%emt 0:00:26]} 33. f4 {[%emt 0:00:00]} exf4 {[%emt 0:02:31]} 34. Re6 {[%emt 0:00:00][%csl LRd6,LRg6]} Bc7 {[%emt 0:01:38] [#]} (34... Rd8 $11) 35. a6 $1 $16 {[%emt 0:00:00]} Kf7 {[%emt 0:03:32]} (35... fxg3 $16 {was called for.} 36. Rxg6+ Kf7) 36. Rc6 $18 {[%emt 0:00:00]} Be5 {[%emt 0:01:26]} 37. gxf4 {[%emt 0:00:00]} Bxf4 {[%emt 0:02:19]} 38. Bb4 {[%emt 0:00:00]} g5 {[%emt 0:01:08] [#]} 39. Kf3 $1 {[%emt 0:00:00][%mdl 1024] White has strong compensation.} h4 {[%emt 0:01:00]} (39... Ke8 {might work better.} 40. Ke4 Kd7) 40. Rh6 {[%emt 0:00:00] Kg4 is the strong threat.} (40. Ke4 Bg3 41. Bc5 (41. Kxd4 g4 $15) 41... g4 42. hxg4 h3 $16) 40... Be3 $2 {[%emt 0:01:55]} (40... Be5) 41. Kg4 {[%emt 0:00:00]} Bf4 {[%emt 0:04:28]} 42. Bc5 {[%emt 0:00:00]} Kg7 {[%emt 0:02:39]} 43. Rb6 {[%emt 0:00:00]} (43. Re6 $142 b4 44. a7) 43... Kf7 {[%emt 0:00:26]} 44. Rh6 $2 {[%emt 0:00:00]} (44. Bxd4 Ke8 45. Bc5 (45. Rxb5 Rxa6 46. Be5 Bd2 $16) 45... Kd8) (44. Rxb5 Rxa6 45. Bxd4 Ra3 $11) (44. Kf5 Ke8 45. Ke4 (45. Bxd4 Kd7 $18) (45. Rxb5 Rxa6 46. Bxd4 Rd6 $11)) 44... Kg7 {[%emt 0:00:23]} 45. Re6 {[%emt 0:00:00]} Kf7 {[%emt 0:00:44]} 46. Kf5 {[%emt 0:00:00] Weighted Error Value: White=0.22 (precise) /Black=0.26 (precise)} 1-0

[Event "13th KIIT Festival-A 2022"]
[Site "Bhubaneswar"]
[Date "2022.05.26"]
[Round "6.10"]
[White "Audi Ameya"]
[Black "Mayank Chakraborty"]
[Result "1-0"]
[ECO "B33"]
[WhiteElo "2389"]
[BlackElo "2015"]
[Annotator "TA"]
[PlyCount "92"]
[EventDate "2022.05.15"]
[EventType "swiss"]
[EventCountry "IND"]
[SourceTitle "playchess.com"]
[Source "ChessBase"]
[SourceQuality "1"]
[TimeControl "5400+30"]

{[%evp 20,92,34,11,6,9,11,8,4,0,18,13,18,16,10,0,5,11,30,23,96,94,108,80,114,114,97,54,55,22,9,12,16,18,110,98,114,114,114,102,115,80,183,151,218,195,276,198,264,91,106,0,0,-89,1247,1162,29979,29976,29993,29988,29988,29989,29989,29990,29990,29991,29991,29992,29992,29993,29994,29995,29995,29996,29997]} 1. e4 {[%emt 0:00:01]} c5 {[%emt 0:00:05]} 2. Nf3 {[%emt 0:00:03][%cal Bg1f3,Bf3d4,Bd4b5,Bb5a3,Ba3c2][%mdl 32]} Nc6 {[%emt 0:00:06]} 3. d4 {[%emt 0:00:03]} cxd4 {[%emt 0:00:04]} 4. Nxd4 {[%emt 0:00:03]} Nf6 {[%emt 0:00:07]} 5. Nc3 {[%emt 0:00:01]} e5 {[%emt 0:00:01]} 6. Ndb5 {[%emt 0:00:08]} d6 {[%emt 0:00:06]} 7. Bg5 {[%emt 0:00:11]} a6 {[%emt 0:00:07]} 8. Na3 {[%emt 0:00:10]} b5 {[%emt 0:00:07]} 9. Nd5 {[%emt 0:00:14]} Be7 {[%emt 0:00:07]} 10. Bxf6 {[%emt 0:00:07]} Bxf6 {[%emt 0:00:05]} 11. c4 {[%emt 0:02:11]} b4 {[%emt 0:00:06] B33: Sicilian: Pelikan and Sveshnikov Variations.} (11... Be6 {feels hotter.} 12. cxb5 Nd4 13. Bc4 axb5 14. Bxb5+ Kf8) 12. Nc2 {[%emt 0:00:02]} O-O {[%emt 0:00:14] outshines the older 12...a5.} 13. g3 {[%emt 0:01:37]} a5 {[%emt 0:01:16] The position is equal.} 14. b3 {[%emt 0:07:03]} Bg5 {[%emt 0:04:32]} 15. h4 {[%emt 0:10:39] 15.Bg2 is not played anymore.} Bh6 {[%emt 0:00:02]} 16. Bh3 {[%emt 0:00:05]} Be6 {[%emt 0:00:06]} 17. Qd3 {[%emt 1:16:22] [#]} Qb8 $146 {[%emt 0:03:55]} ({Predecessor:} 17... Nb8 18. Bxe6 fxe6 19. Nde3 Bxe3 20. Qxe3 Nd7 21. O-O Nc5 22. Kg2 Qc7 23. Rab1 Rad8 {½-½ (44) Sarakenidis,N (2346)-Pilipchuk,A (2262) LSS email 2015}) 18. Kf1 {[%emt 0:00:00]} Qa7 {[%emt 0:05:04]} 19. Kg2 {[%emt 0:00:00]} Ne7 {[%emt 0:06:27]} (19... Rab8 $11) 20. Nxe7+ $1 $16 {[%emt 0:00:00]} Qxe7 {[%emt 0:00:07]} 21. a3 {[%emt 0:00:00]} Qb7 {[%emt 0:08:11]} 22. axb4 $1 {[%emt 0:00:00]} axb4 {[%emt 0:00:31]} 23. f3 {[%emt 0:00:00] Black must now prevent Bxe6.} Qb6 {[%emt 0:04:57]} 24. Rhd1 {[%emt 0:00:00]} Rxa1 {[%emt 0:04:57]} 25. Rxa1 {[%emt 0:00:00][%cal Bd1a1,Ba1a4,Ba4b4,Bb4b5][%mdl 32]} Bxh3+ {[%emt 0:00:50]} 26. Kxh3 {[%emt 0:00:00] Strongly threatening Kg2.} g6 {[%emt 0:04:36]} (26... Qf2 $1 $11 27. Rf1 (27. Nxb4 Bf4 28. gxf4 exf4 29. Kg4 Qg3+ 30. Kf5 g6+ 31. Kf6 Qxh4#) 27... Qc5) 27. Kg2 {[%emt 0:00:00]} Rb8 {[%emt 0:03:50]} 28. Ra4 {[%emt 0:00:00]} Qc5 {[%emt 0:00:28]} 29. Qe2 {[%emt 0:00:00]} Rb7 {[%emt 0:03:54]} 30. Qe1 {[%emt 0:00:00][%cal Ra4b4]} (30. Ra8+ {is interesting.} Kg7 31. Qd1 Rd7 32. Ra4) 30... f5 {[%emt 0:02:59]} (30... Ra7 $16 31. Qxb4 Qxb4 32. Nxb4 Rb7) 31. Rxb4 {[%emt 0:00:00]} (31. Nxb4 fxe4 32. fxe4 Qd4 $11) 31... Ra7 {[%emt 0:02:01] [#]} (31... Rxb4 $16 {was necessary.} 32. Qxb4 fxe4) 32. Rb5 $1 $18 {[%emt 0:00:00]} Qc6 {[%emt 0:00:34]} (32... Qc8 $142 33. exf5 Qxf5) 33. Nb4 {[%emt 0:00:00]} Qa8 {[%emt 0:00:39]} (33... Qc8 {was called for.} 34. exf5 Qxf5 35. Rb8+ Bf8) 34. Qd1 $2 {[%emt 0:00:00]} (34. exf5 $18 {is more deadly. aiming for c5.} gxf5 35. Qd1) 34... fxe4 $16 {[%emt 0:00:32]} 35. Qxd6 {[%emt 0:01:20]} ({Of course not} 35. Qd5+ Qxd5 36. Rxd5 Ra3 37. fxe4 Rxb3 $11) ({White should play} 35. fxe4 $16 {And now Qd5+ would win.} Qxe4+ 36. Qf3 Qxf3+ 37. Kxf3) 35... exf3+ $11 {[%emt 0:00:08]} 36. Kh2 {[%emt 0:00:12]} (36. Kf2 $11 Ra2+ 37. Nxa2 Qxa2+ 38. Kxf3 e4+ 39. Kg4 Qe2+ 40. Kh3 Qf1+ 41. Kg4 (41. Kh2 Qe2+ 42. Kh3 Qf1+ 43. Kh2 Qe2+ 44. Kh3 $11) 41... Qe2+ 42. Kh3 Qf1+ 43. Kg4 (43. Kh2 Qe2+ 44. Kh3 $11) 43... Qe2+) 36... Ra2+ $2 {[%emt 0:05:14][%mdl 8192] This costs Black the game.} 37. Nxa2 $18 {[%emt 0:00:04] Threatening mate with Rb8+.} Qxa2+ {[%emt 0:00:07][%mdl 4096] Endgame KQR-KQB} 38. Kh3 {[%emt 0:00:02] White mates.} Qg2+ {[%emt 0:00:01]} 39. Kg4 {[%emt 0:00:02]} Bf8 {[%emt 0:02:17]} 40. Qe6+ {[%emt 0:00:24]} Kh8 {[%emt 0:00:13]} 41. Qxe5+ {[%emt 0:00:05]} Kg8 {[%emt 0:00:07]} 42. Qd5+ {[%emt 0:02:11]} Kh8 {[%emt 0:00:05]} 43. Rb8 {[%emt 0:00:33]} h5+ {[%emt 0:00:25]} 44. Kf4 {[%emt 0:00:03]} g5+ {[%emt 0:01:06]} 45. hxg5 {[%emt 0:00:14]} Qd2+ {[%emt 0:00:32]} 46. Qxd2 {[%emt 0:00:06]} Kg8 {[%emt 0:41:32] Weighted Error Value: White=0.22 (precise) /Black=0.33} 1-0

[Event "13th KIIT Festival-A 2022"]
[Site "Bhubaneswar"]
[Date "2022.05.26"]
[Round "6.11"]
[White "Priyankara, Chamil"]
[Black "Karthikeyan, P.."]
[Result "0-1"]
[ECO "D00"]
[WhiteElo "1938"]
[BlackElo "2361"]
[Annotator "TA"]
[PlyCount "94"]
[EventDate "2022.05.15"]
[EventType "swiss"]
[EventCountry "IND"]
[SourceTitle "playchess.com"]
[Source "ChessBase"]
[SourceQuality "1"]
[TimeControl "5400+30"]

{[%evp 9,94,0,0,-10,0,0,0,0,0,0,0,-21,0,0,0,0,-2,-9,25,22,27,0,0,-44,0,-22,29,0,0,0,0,0,0,0,68,0,0,0,0,-9,60,0,94,104,226,227,242,220,280,266,287,284,267,235,290,243,331,277,283,281,361,381,362,368,375,370,360,340,353,338,357,346,827,841,1052,248,248,233,226,0,0,0,0,-727,-640,-29984,-3667]} 1. d4 {[%emt 0:06:58]} Nf6 {[%emt 0:00:03]} 2. Bf4 {[%emt 0:00:31]} d5 {[%emt 0:00:05]} 3. e3 {[%emt 0:00:19]} c5 {[%emt 0:00:02]} 4. c3 {[%emt 0:01:49]} Nc6 {[%emt 0:00:13]} 5. Nd2 {[%emt 0:00:04]} Bf5 {[%emt 0:05:30]} 6. Qb3 {[%emt 0:00:17] D00: 1 d4 d5: Unusual lines.} Qd7 {[%emt 0:02:33]} 7. dxc5 {[%emt 0:01:19]} e5 {[%emt 0:03:33]} 8. Bg3 {[%emt 0:00:21] The position is equal.} Bxc5 {[%emt 0:00:15]} 9. Ngf3 {[%emt 0:00:18]} Bd6 {[%emt 0:00:49]} 10. Bb5 {[%emt 0:02:26][%cal Of3e5]} Qe7 {[%emt 0:02:14]} 11. Bh4 {[%emt 0:10:57]} a6 {[%emt 0:02:57]} 12. Be2 {[%emt 0:01:31]} Be6 {[%emt 0:11:24]} 13. Ng5 {[%emt 0:02:37] [#]} e4 $146 {[%emt 0:04:40]} ({Predecessor:} 13... Bd7 14. Ngf3 e4 15. Nd4 Nxd4 16. cxd4 Bc6 17. O-O Qd7 18. a4 Qe6 19. Rac1 O-O {½-½ (30) Franzen,T (2340)-Kolek,P (2201) ICCF email 2019}) 14. Nxe6 {[%emt 0:01:37]} fxe6 {[%emt 0:00:10]} 15. O-O {[%emt 0:03:58]} (15. Bh5+ $5 Kf8 16. Be2 $11) 15... O-O {[%emt 0:05:24]} 16. Rfc1 {[%emt 0:23:47]} Rad8 {[%emt 0:07:29]} 17. c4 {[%emt 0:07:35]} Bb4 {[%emt 0:03:15]} (17... Qc7 $142) 18. Qc2 {[%emt 0:03:55]} Bxd2 {[%emt 0:09:39]} 19. Qxd2 {[%emt 0:01:17]} dxc4 {[%emt 0:00:11]} 20. Qe1 {[%emt 0:09:47]} b5 {[%emt 0:04:21]} 21. b3 {[%emt 0:00:10]} Qc5 {[%emt 0:02:42]} (21... Ne5 $11) 22. a4 {[%emt 0:04:31]} (22. bxc4 $14 b4 23. Rcb1) 22... Ne5 $11 {[%emt 0:04:31] Hoping for ...Nd3.} 23. axb5 {[%emt 0:01:03]} axb5 {[%emt 0:00:50]} 24. bxc4 {[%emt 0:01:54]} b4 {[%emt 0:01:36]} ({Much less strong is} 24... bxc4 25. Ra5 Qc7 26. Bg3 $16) ({Better is} 24... Nd3 $11 25. cxb5 Qxc1 26. Qxc1 Nxc1 27. Rxc1 Rd2) 25. Rab1 {[%emt 0:04:27]} ({White should play} 25. Rcb1 $14) 25... Rb8 {[%emt 0:03:30]} (25... g5 $11 {keeps the balance.} 26. Bg3 (26. Bxg5 $2 Nd3 $19) 26... Nd3 27. Bxd3 exd3 28. Qxb4 Qxb4 29. Rxb4 Ne4) 26. Bg3 $16 {[%emt 0:00:57]} Nc6 {[%emt 0:13:58]} (26... Nfd7 $16 {was necessary.}) 27. Bxb8 $18 {[%emt 0:00:46]} Rxb8 {[%emt 0:00:02]} 28. Qd1 {[%emt 0:01:13]} h5 {[%emt 0:01:40]} 29. h3 {[%emt 0:00:24]} Kf7 {[%emt 0:01:08]} 30. Rb2 {[%emt 0:01:15]} Ke7 {[%emt 0:00:46]} 31. Rd2 {[%emt 0:02:30]} h4 {[%emt 0:01:58]} 32. Rb1 {[%emt 0:00:59][%cal Bc1b1,Bb1a1,Ba1a6,Ba6a8][%mdl 32]} g5 {[%emt 0:00:03]} 33. Qc2 {[%emt 0:00:44]} Ra8 {[%emt 0:01:01]} 34. Qb2 {[%emt 0:00:47]} Rg8 {[%emt 0:01:04]} 35. Ra1 {[%emt 0:00:29]} Rb8 {[%emt 0:01:22]} 36. Ra6 {[%emt 0:00:34]} Kf7 {[%emt 0:01:54]} 37. Rd1 {[%emt 0:00:44]} Ke7 {[%emt 0:00:49]} 38. Rda1 {[%emt 0:00:15][%cal Oa6c6]} Rb7 {[%emt 0:02:01]} 39. Bd1 {[%emt 0:00:49]} Kf7 {[%emt 0:01:01]} 40. Ra8 {[%emt 0:00:14]} Ne5 $2 {[%emt 0:02:03]} (40... Qe5 41. Qa2 Rc7) 41. R1a5 {[%emt 0:00:58]} Nd3 {[%emt 0:01:15]} 42. Qb1 $2 {[%emt 0:02:19]} (42. Qa1) 42... Qxc4 {[%emt 0:00:30]} 43. Rxg5 {[%emt 0:01:06] And now Bh5+ would win.} b3 {[%emt 0:00:07][%cal Bb4b3,Bb3b2][%mdl 32] [#]} 44. Rga5 $2 {[%emt 0:01:10]} ({Only move:} 44. Bxb3 $1 $18 {[%cal Oa8a7][%mdl 512] Ra7! is the strong threat.} Qxb3 45. Qxb3 Rxb3 46. Ra7+ Kf8 47. Rg6 Rb1+ 48. Kh2) 44... Kg6 {[%emt 0:01:10] White must now prevent ...b2. Really sharp!} 45. R5a7 {[%emt 0:00:32]} Rb6 {[%emt 0:00:01] aiming for ...b2.} 46. Ra1 $2 {[%emt 0:00:41][%mdl 8192]} (46. Rf8 $11 Qc3 47. Raf7) 46... b2 $19 {[%emt 0:00:32]} 47. R1a3 {[%emt 0:00:29]} Qc1 {[%emt 0:00:08] Weighted Error Value: White=0.71/Black=0.29 (precise)} 0-1